bitfinex/quotes_SOLUSD_20250722
["timestamp","ask_amount","ask_price","bid_price","bid_amount"]
[1753171860791,11.16429383,195.75,195.66,30.93572686]
[1753171860992,0.66,195.74,195.66,30.93572686]
[1753171861208,11.16429383,195.72,195.66,42.10002069]
[1753171861421,1.29847175,195.78,195.71,11.16429383]
[1753171861723,11.82429383,195.8,195.74,11.16429383]
[1753171862014,49.608,195.84,195.7,17.88451711]
[1753171862015,11.80260256,195.83,195.77,11.16429383]
[1753171862220,11.80260256,195.83,195.7,17.88451711]
[1753171862221,12.46260256,195.83,195.73,26.31]
[1753171862395,11.16429383,195.81,195.75,11.16429383]
[1753171862716,11.16429383,195.77,195.71,11.16429383]
[1753171863101,11.16429383,195.77,195.7,17.88451711]
[1753171863414,0.66,195.78,195.7,17.88451711]
[1753171863709,0.63837393,195.81,195.72,5.10933987]
[1753171863912,11.82429383,195.8,195.74,11.16429383]
[1753171864211,34.948,195.84,195.72,17.88268955]
[1753171864212,0.63830873,195.83,195.77,11.16429383]
[1753171864410,10.24627614,195.84,195.78,11.16429383]
[1753171864708,6.7357,195.84,195.79,11.16429383]
[1753171865007,40.66,195.85,195.75,0.31]
[1753171865308,41.29824355,195.85,195.8,11.16429383]
[1753171865502,40.66,195.85,195.81,11.16429383]
[1753171865806,12.46256997,195.84,195.78,11.16429383]
[1753171866004,11.16429383,195.81,195.76,17.87903555]
[1753171866205,11.82429383,195.83,195.77,11.16429383]
[1753171866394,0.66,195.83,195.78,11.16429383]
[1753171866591,0.66,195.82,195.78,11.16429383]
[1753171866816,41.32,195.85,195.79,11.16429383]
[1753171867109,11.16429383,195.83,195.77,11.16429383]
[1753171867306,41.32,195.85,195.79,11.16429383]
[1753171867497,40.66,195.85,195.81,11.16429383]
[1753171867693,40.66,195.85,195.82,5.10673067]
[1753171868214,40.66,195.85,195.82,16.2710245]
[1753171868400,40.66,195.85,195.82,5.10673067]
[1753171869103,41.32,195.85,195.82,5.10673067]
[1753171869319,0.66,195.84,195.82,5.10673067]
[1753171869618,11.88429383,195.83,195.77,5.10803493]
[1753171869819,40.66,195.85,195.73,23.93691474]
[1753171869820,11.16429383,195.79,195.73,23.93691474]
[1753171869994,11.88429383,195.81,195.75,11.16429383]
[1753171870312,16.78468397,195.87,195.73,12.77262091]
[1753171870313,11.88429383,195.87,195.76,0.31]
[1753171870518,11.80250479,195.86,195.8,11.16429383]
[1753171870688,40.46,195.88,195.83,11.16429383]
[1753171870888,52.34429383,195.88,195.82,11.16429383]
[1753171871097,11.80247221,195.87,195.81,11.16429383]
[1753171871393,12.52247221,195.87,195.81,11.16429383]
[1753171871646,12.52247221,195.87,195.75,11.16429383]
[1753171871647,11.16429383,195.82,195.75,11.16429383]
[1753171871818,11.16429383,195.81,195.76,5.10829587]
[1753171871992,11.88429383,195.81,195.76,5.10829587]
[1753171872616,0.72,195.81,195.76,29.04332938]
[1753171872823,40.44,195.82,195.77,11.16429383]
[1753171873121,41.16,195.82,195.76,29.04332938]
[1753171873637,41.16,195.82,195.78,11.16429383]
[1753171873638,40.44,195.82,195.78,11.16429383]
[1753171873809,11.16429383,195.87,195.82,17.37355734]
[1753171874004,40.38,195.87,195.82,28.53785117]
[1753171874195,0.72,195.89,195.83,11.16429383]
[1753171874522,46.9634,195.91,195.86,11.16429383]
[1753171874902,11.88429383,195.9,195.82,17.37355734]
[1753171875102,11.80166133,195.89,195.83,11.16429383]
[1753171875321,11.80166133,195.89,195.82,17.37355734]
[1753171875322,0.72,195.88,195.82,17.37355734]
[1753171875528,11.16429383,195.87,195.82,17.37355734]
[1753171875909,0.72,195.87,195.82,17.37355734]
[1753171876323,0.72,195.87,195.82,28.53785117]
[1753171877008,0.72,195.87,195.82,17.37355734]
[1753171877333,0.63808065,195.9,195.85,11.16429383]
[1753171877509,58.12769383,195.91,195.83,0.31]
[1753171877698,11.16429383,195.88,195.82,28.53785117]
[1753171878315,11.16429383,195.88,195.82,17.37355734]
[1753171878504,11.88429383,195.88,195.82,17.37355734]
[1753171878709,11.88429383,195.88,195.82,28.53785117]
[1753171879112,11.88429383,195.88,195.82,24.87844625]
[1753171879325,8.22488891,195.88,195.82,17.37355734]
[1753171879638,0.72,195.88,195.83,7.50488891]
[1753171879935,46.9634,195.91,195.86,17.86990707]
[1753171880232,8.22488891,195.9,195.86,17.86990707]
[1753171880406,0.72,195.89,195.86,17.86990707]
[1753171880606,8.22488891,195.89,195.86,17.86990707]
[1753171880828,46.9634,195.91,195.86,25.37479598]
[1753171881300,40.36,195.91,195.86,25.37479598]
[1753171881512,40.36,195.91,195.87,7.50488891]
[1753171881823,40.36,195.91,195.86,17.86990707]
[1753171882001,40.36,195.91,195.86,25.37479598]
[1753171882002,0.72,195.9,195.86,25.37479598]
[1753171882203,40.36,195.91,195.86,17.86990707]
[1753171882409,13.96236113,195.91,195.88,7.50488891]
[1753171882611,47.58020674,195.95,195.9,7.50488891]
[1753171882612,0.06,195.95,195.9,7.50488891]
[1753171882815,0.63785273,195.97,195.94,7.50488891]
[1753171883030,3.4112,196.01,195.96,7.50488891]
[1753171883219,1.35772256,196.01,195.97,7.50488891]
[1753171883425,0.72,196.01,195.97,7.50488891]
[1753171883838,1.3577551,196.0,195.95,7.50488891]
[1753171884046,0.72,195.99,195.95,7.50488891]
[1753171884431,0.6377551,196.0,195.95,7.50488891]
[1753171884626,0.63772256,196.01,195.97,7.50488891]
[1753171884829,1.35772256,196.01,195.96,7.50488891]
[1753171885030,54.52277894,196.02,195.96,7.50488891]
[1753171885329,40.2,196.02,195.98,7.50488891]
[1753171885521,0.06,196.03,196.0,7.50488891]
[1753171885934,0.06,196.03,196.01,12.60666943]
[1753171886245,0.06,196.03,196.02,7.50488891]
[1753171886428,0.72,196.09,196.02,7.50488891]
[1753171886743,0.72,196.09,196.05,7.50488891]
[1753171886945,40.12,196.1,196.05,7.50488891]
[1753171887126,40.84,196.1,196.05,7.50488891]
[1753171887533,7.50488891,196.06,196.01,17.85623182]
[1753171887731,7.50488891,196.04,196.01,5.10178052]
[1753171888053,1.3576575,196.03,195.96,5.10308226]
[1753171888231,8.86254641,196.03,195.96,25.36567682]
[1753171888550,1.3576575,196.03,195.96,25.36567682]
[1753171888725,1.3576575,196.03,195.96,17.86078791]
[1753171889045,7.50488891,196.01,195.96,5.10308226]
[1753171889338,0.72,196.0,195.96,5.10308226]
[1753171890219,0.72,196.0,195.96,25.36567682]
[1753171890525,0.63772256,196.01,195.96,25.36567682]
[1753171890726,0.63772256,196.01,195.96,17.86078791]
[1753171890727,0.72,196.01,195.96,17.86078791]
[1753171890922,7.50488891,196.02,195.96,25.36567682]
[1753171891329,1.35762497,196.04,195.96,25.36567682]
[1753171891533,7.50488891,196.02,195.96,25.36567682]
[1753171891741,7.50488891,196.0,195.96,17.86078791]
[1753171892119,0.72,196.0,195.96,12.75770565]
[1753171892847,0.72,196.0,195.95,12.60823159]
[1753171892848,7.50488891,195.97,195.95,5.10334268]
[1753171893149,1.35778764,195.99,195.95,5.10334268]
[1753171893150,8.22488891,195.96,195.95,5.10334268]
[1753171893449,48.16267655,195.99,195.95,5.10334268]
[1753171893746,40.65778764,195.99,195.95,25.36658831]
[1753171893944,47.52488891,196.02,195.95,17.8616994]
[1753171894245,7.50488891,195.99,195.93,12.60875253]
[1753171894451,1.35782018,195.98,195.93,12.60875253]
[1753171894920,8.14267655,195.99,195.93,25.36841159]
[1753171895324,7.50488891,195.98,195.93,5.10386362]
[1753171895543,0.63785273,195.97,195.93,5.10386362]
[1753171895755,1.35785273,195.97,195.93,5.10386362]
[1753171895936,7.50488891,195.98,195.93,17.86352268]
[1753171896345,1.3577551,196.0,195.93,17.86352268]
[1753171896644,7.50488891,195.98,195.93,17.86352268]
[1753171897027,8.86264401,196.0,195.94,7.50488891]
[1753171897627,48.16257894,196.02,195.96,7.50488891]
[1753171897826,40.02,196.02,195.97,7.50488891]
[1753171898041,40.02,196.02,195.99,7.50488891]
[1753171898249,0.63762497,196.04,195.99,7.50488891]
[1753171898434,8.14251388,196.04,195.98,7.50488891]
[1753171898641,8.22488891,196.03,195.98,7.50488891]
[1753171898848,0.72,196.02,195.98,7.50488891]
[1753171899040,6.2307,196.05,195.98,7.50488891]
[1753171899041,6.9507,196.05,195.98,7.50488891]
[1753171899356,7.50488891,196.04,195.98,7.50488891]
[1753171899836,0.06,196.03,196.01,7.50488891]
[1753171900349,0.06,196.03,195.97,18.16987651]
[1753171900553,0.06,196.03,196.01,5.10178052]
[1753171900731,8.89254641,196.03,195.97,20.26194356]
[1753171901049,8.19488891,196.02,195.98,5.10256148]
[1753171901251,0.69,196.01,195.98,5.10256148]
[1753171901427,0.06,196.03,195.94,12.75890315]
[1753171901428,8.83264401,196.0,195.96,5.10287863]
[1753171901627,8.19488891,195.99,195.96,5.10287863]
[1753171902551,8.19488891,195.99,195.95,5.10334268]
[1753171902739,0.69,195.99,195.95,5.10334268]
[1753171902938,8.19488891,195.99,195.95,5.10334268]
[1753171903136,7.50488891,195.96,195.93,0.03]
[1753171903352,8.83280674,195.95,195.93,5.13382653]
[1753171903846,7.50488891,195.94,195.93,0.03]
[1753171904055,24.97957288,195.94,195.89,0.03]
[1753171904240,7.50488891,195.9,195.89,0.03]
[1753171904559,16.78468397,195.89,195.79,12.76857015]
[1753171904764,7.50488891,195.81,195.78,5.10777403]
[1753171905060,7.50488891,195.81,195.7,12.77456887]
[1753171905061,7.50488891,195.79,195.7,12.77456887]
[1753171905243,7.50488891,195.75,195.7,12.77456887]
[1753171905562,7.50488891,195.72,195.68,5.1103843]
[1753171905735,0.69,195.71,195.68,5.1103843]
[1753171906063,0.69,195.7,195.68,5.1103843]
[1753171906242,0.63876539,195.69,195.66,18.18828075]
[1753171906445,0.69,195.68,195.66,18.18828075]
[1753171906653,7.50488891,195.67,195.66,13.07755351]
[1753171906836,0.69,195.68,195.66,18.18845497]
[1753171907233,12.5316397,195.67,195.66,13.07755351]
[1753171908354,2.7133,195.72,195.66,18.18846018]
[1753171908355,0.69,195.71,195.66,18.18846018]
[1753171908562,12.53150913,195.71,195.66,18.18846018]
[1753171908758,1.32870011,195.71,195.66,18.18846018]
[1753171908968,54.5747765,195.72,195.66,42.16853588]
[1753171909198,40.02,195.72,195.68,11.20280902]
[1753171909338,11.20280902,195.75,195.69,11.20280902]
[1753171909537,11.20280902,195.73,195.67,11.20280902]
[1753171909739,11.8414765,195.72,195.66,30.96572686]
[1753171909960,11.20280902,195.7,195.66,18.18846018]
[1753171910168,11.89280902,195.7,195.66,18.18846018]
[1753171910353,1.32863485,195.73,195.66,42.16853588]
[1753171910553,11.20280902,195.72,195.66,42.16853588]
[1753171910752,11.84144387,195.73,195.66,30.96572686]
[1753171910946,11.84144387,195.73,195.67,11.20280902]
[1753171911145,11.84144387,195.73,195.66,30.96572686]
[1753171911146,11.20280902,195.74,195.66,30.96572686]
[1753171911344,11.20280902,195.71,195.66,30.96572686]
[1753171911548,12.53154177,195.7,195.66,18.18846018]
[1753171912057,11.20280902,195.68,195.66,18.18846018]
[1753171912257,0.69,195.67,195.66,18.18846018]
[1753171912453,0.69,195.7,195.66,18.18846018]
[1753171912641,1.32876539,195.69,195.66,18.18846018]
[1753171912838,0.63876539,195.69,195.66,18.18846018]
[1753171913047,11.8414765,195.72,195.66,29.3912692]
[1753171913247,1.32863485,195.73,195.67,11.20280902]
[1753171913445,2.8358,195.79,195.72,11.20280902]
[1753171913754,2.8358,195.79,195.67,40.02]
[1753171913755,0.63840653,195.8,195.75,11.20280902]
[1753171914444,0.63840653,195.8,195.71,0.37]
[1753171914445,0.69,195.79,195.72,11.20280902]
[1753171914645,0.69,195.79,195.73,17.88177591]
[1753171914646,11.84128077,195.78,195.73,17.88177591]
[1753171915051,11.20280902,195.76,195.73,17.88177591]
[1753171915266,0.63840653,195.8,195.74,11.20280902]
[1753171915456,0.63840653,195.8,195.75,11.20280902]
[1753171915775,0.63830873,195.83,195.78,11.20280902]
[1753171916151,11.84111775,195.83,195.77,11.20280902]
[1753171916348,40.02,195.84,195.79,11.20280902]
[1753171916761,40.02,195.84,195.8,16.31006131]
[1753171917074,40.02,195.84,195.8,29.07819205]
[1753171917283,40.02,195.84,195.81,11.20280902]
[1753171917449,0.69,195.87,195.81,11.20280902]
[1753171917650,40.02,195.9,195.8,18.24538303]
[1753171917651,0.63811322,195.89,195.84,11.20280902]
[1753171917850,40.71,195.9,195.84,11.20280902]
[1753171918152,2.8299,195.92,195.87,11.20280902]
[1753171918352,0.63804808,195.91,195.86,11.20280902]
[1753171918551,1.32801551,195.92,195.87,11.20280902]
[1753171918749,51.91280902,195.95,195.89,29.06997936]
[1753171918949,40.71,195.95,195.9,11.20280902]
[1753171919278,0.69,195.98,195.93,11.20280902]
[1753171920372,16.78468397,195.93,195.89,5.10490581]
[1753171920557,16.78468397,195.93,195.85,11.20280902]
[1753171920558,11.20280902,195.9,195.85,5.10594842]
[1753171920767,0.63801551,195.92,195.85,11.20280902]
[1753171920994,11.89280902,195.93,195.87,11.20280902]
[1753171921282,0.63795039,195.94,195.83,12.76606671]
[1753171921283,0.63795039,195.94,195.89,11.20280902]
[1753171921449,0.69,195.96,195.91,11.20280902]
[1753171921645,0.63785273,195.97,195.92,11.20280902]
[1753171921951,0.69,195.99,195.95,11.20280902]
[1753171922167,18.06366412,196.0,195.94,11.20280902]
[1753171922349,6.2231,196.0,195.95,11.20280902]
[1753171922683,56.84468397,196.03,195.95,11.20280902]
[1753171922684,51.95280902,196.03,195.97,11.20280902]
[1753171922983,51.95280902,196.03,195.97,5.10282186]
[1753171923183,40.06,196.03,195.98,11.20280902]
[1753171923760,0.06,196.03,196.0,11.20280902]
[1753171923950,0.06,196.03,196.02,11.20280902]
[1753171924154,0.06,196.03,196.0,11.20280902]
[1753171924384,0.06,196.03,195.99,11.20280902]
[1753171924674,11.26280902,196.03,195.97,29.06268553]
[1753171924855,0.06,196.03,195.98,11.20280902]
[1753171925065,11.20280902,196.01,195.97,5.10282186]
[1753171925258,12.53056412,196.0,195.97,5.10282186]
[1753171925579,11.20280902,196.01,195.97,5.10282186]
[1753171926265,0.6377551,196.0,195.97,5.10282186]
[1753171926776,12.53056412,196.0,195.95,5.10334268]
[1753171926984,11.89280902,196.0,195.95,5.10334268]
[1753171927278,11.20280902,196.02,195.96,11.20280902]
[1753171927772,11.20280902,195.97,195.9,16.30745424]
[1753171927986,0.69,195.97,195.9,29.0690673]
[1753171928177,11.20280902,195.97,195.91,11.20280902]
[1753171928556,11.20280902,195.99,195.93,11.20280902]
[1753171928761,0.69,195.98,195.94,5.10360314]
[1753171928967,11.20280902,195.97,195.94,5.10360314]
[1753171929182,11.89280902,195.98,195.94,5.10360314]
[1753171929383,11.89280902,195.97,195.94,5.10360314]
[1753171929564,11.20280902,195.98,195.94,5.10360314]
[1753171929976,1.32772256,196.01,195.94,5.10360314]
[1753171930372,11.20280902,196.0,195.94,29.06542001]
[1753171930786,0.63778764,195.99,195.94,17.86261099]
[1753171931080,11.20280902,196.0,195.94,17.86261099]
[1753171931282,11.84049905,196.02,195.95,11.20280902]
[1753171931600,11.84049905,196.02,195.94,5.10360314]
[1753171931601,27.98749299,196.01,195.94,5.10360314]
[1753171931881,27.98749299,196.01,195.89,11.20280902]
[1753171931882,16.78468397,195.98,195.89,11.20280902]
[1753171932088,11.20280902,195.94,195.88,11.20280902]
[1753171932464,6.0426,195.99,195.92,11.20280902]
[1753171932465,57.20540902,195.99,195.92,11.20280902]
[1753171932656,12.5306292,195.98,195.87,0.37]
[1753171932894,0.69,195.98,195.92,11.20280902]
[1753171933057,39.96,195.99,195.94,11.20280902]
[1753171933260,0.63769003,196.02,195.98,11.20280902]
[1753171933454,10.06,196.03,195.98,11.20280902]
[1753171933455,10.06,196.03,196.0,11.20280902]
[1753171933671,10.06,196.03,196.02,11.20280902]
[1753171934492,0.06,196.07,196.02,11.20280902]
[1753171934493,0.06,196.07,196.02,11.57280902]
[1753171934667,1e-08,196.07,196.06,11.20280902]
[1753171935063,11.20280902,196.18,196.06,29.42448707]
[1753171935362,11.20280902,196.18,196.07,0.37]
[1753171935559,7.93553746,196.19,196.13,11.20280902]
[1753171935759,7.2984,196.19,196.14,11.20280902]
[1753171935960,16.78468397,196.22,196.14,11.20280902]
[1753171936182,11.83988154,196.21,196.14,11.20280902]
[1753171936389,0.69,196.23,196.14,11.20280902]
[1753171936390,1.32700759,196.23,196.14,11.57280902]
[1753171936569,0.69,196.23,196.17,11.20280902]
[1753171936768,0.69,196.23,196.16,11.20280902]
[1753171936964,11.20280902,196.22,196.14,0.37]
[1753171937173,12.52981661,196.23,196.17,11.20280902]
[1753171937685,11.89280902,196.23,196.17,11.20280902]
[1753171938083,51.14280902,196.24,196.18,11.20280902]
[1753171938564,11.20280902,196.22,196.15,5.09813917]
[1753171938771,16.78468397,196.2,196.11,12.74738464]
[1753171939071,16.78468397,196.2,196.09,0.37]
[1753171939072,11.20280902,196.2,196.15,5.09813917]
[1753171939379,0.63687777,196.27,196.19,11.20280902]
[1753171939569,0.75,196.29,196.24,11.20280902]
[1753171939764,0.63684532,196.28,196.23,11.20280902]
[1753171939968,0.63684532,196.28,196.24,11.20280902]
[1753171940391,0.63684532,196.28,196.27,11.20280902]
[1753171940564,0.06,196.29,196.27,11.20280902]
[1753171940761,0.06,196.29,196.28,11.20280902]
[1753171941182,0.06,196.29,196.28,16.2975716]
[1753171941395,0.06,196.29,196.28,5.09476258]
[1753171941568,0.06,196.29,196.24,5.09580105]
[1753171941774,0.06,196.29,196.28,11.20280902]
[1753171942198,1.38681287,196.29,196.24,11.20280902]
[1753171942370,0.69,196.28,196.24,11.20280902]
[1753171942689,0.69,196.27,196.25,11.20280902]
[1753171942898,0.63691022,196.26,196.24,11.20280902]
[1753171943069,0.69,196.27,196.18,0.37]
[1753171943070,0.69,196.27,196.25,5.0955414]
[1753171943273,0.69,196.26,196.19,5.09709975]
[1753171943479,0.63694267,196.25,196.19,5.09709975]
[1753171943681,0.63694267,196.25,196.22,11.20280902]
[1753171943975,0.69,196.25,196.23,11.20280902]
[1753171944175,0.69,196.25,196.22,11.20280902]
[1753171944396,0.69,196.25,196.19,5.09709975]
[1753171944397,1.32697513,196.24,196.19,5.09709975]
[1753171944706,0.69,196.23,196.19,16.29990877]
[1753171944908,0.63697513,196.24,196.2,11.20280902]
[1753171945082,0.69,196.22,196.19,11.20280902]
[1753171945402,0.69,196.22,196.18,11.20280902]
[1753171945403,0.69,196.21,196.18,11.20280902]
[1753171945583,0.63700759,196.23,196.14,18.21439685]
[1753171945779,0.63700759,196.23,196.2,11.20280902]
[1753171946287,0.69,196.28,196.22,11.20280902]
[1753171946485,3.6647,196.32,196.27,11.20280902]
[1753171946685,3.61141556,196.32,196.28,11.20280902]
[1753171946890,0.06,196.32,196.28,11.20280902]
[1753171947294,0.06,196.32,196.28,16.2975716]
[1753171948688,0.69671556,196.32,196.24,5.09580105]
[1753171948889,0.69,196.28,196.23,5.0958927]
[1753171949073,11.26280902,196.29,196.16,6.4665]
[1753171949074,12.52968679,196.27,196.16,0.37]
[1753171949395,0.06,196.29,196.16,0.37]
[1753171949396,11.89962189,196.29,196.24,11.20280902]
[1753171949596,11.20280902,196.27,196.21,11.20280902]
[1753171949784,18.11159419,196.26,196.17,5.09761941]
[1753171949978,11.20280902,196.25,196.19,11.20280902]
[1753171950195,11.20280902,196.23,196.17,16.30042843]
[1753171950397,12.52984907,196.22,196.17,5.09761941]
[1753171950600,0.63704005,196.22,196.2,11.20280902]
[1753171950798,5.65452945,196.29,196.2,11.20280902]
[1753171950799,0.56,196.29,196.21,11.57280902]
[1753171950978,0.75,196.32,196.28,11.20280902]
[1753171950979,0.06,196.32,196.28,11.20280902]
[1753171951174,0.06,196.32,196.31,16.29679302]
[1753171951381,0.06,196.33,196.31,16.29679302]
[1753171951578,0.06,196.33,196.32,11.20280902]
[1753171951782,0.06,196.33,196.32,11.57280902]
[1753171951979,1e-08,196.34,196.33,26.0]
[1753171952295,1e-08,196.34,196.33,37.57280902]
[1753171952793,1e-08,196.34,196.33,26.37]
[1753171953100,1e-08,196.34,196.33,37.20280902]
[1753171953303,1e-08,196.34,196.33,42.2962741]
[1753171953613,1e-08,196.34,196.33,16.2962741]
[1753171953989,1e-08,196.34,196.33,16.6662741]
[1753171954393,0.2,196.43,196.33,54.86726223]
[1753171954588,0.2,196.43,196.42,11.20280902]
[1753171954901,0.2,196.43,196.34,40.19]
[1753171955104,0.2,196.43,196.42,11.20280902]
[1753171955296,0.2,196.43,196.35,17.82531193]
[1753171955497,0.2,196.43,196.42,11.20280902]
[1753171955899,0.2,196.43,196.41,11.20280902]
[1753171956297,0.2,196.43,196.42,11.20280902]
[1753171956486,0.2,196.43,196.35,17.82531193]
[1753171956487,0.2,196.43,196.41,11.20280902]
[1753171956992,0.2,196.43,196.35,17.82531193]
[1753171957303,0.2,196.43,196.4,5.09164969]
[1753171957304,0.69,196.42,196.4,5.09164969]
[1753171957506,11.30280902,196.44,196.4,5.09164969]
[1753171957507,0.1,196.44,196.43,26.0]
[1753171957804,6.2204,196.53,196.43,26.0]
[1753171957805,6.2204,196.53,196.43,37.20280902]
[1753171957980,17.42320902,196.53,196.47,11.20280902]
[1753171958187,11.20280902,196.48,196.41,11.20280902]
[1753171958484,11.20280902,196.46,196.4,16.29445871]
[1753171958685,11.20280902,196.5,196.44,11.20280902]
[1753171959213,16.78468397,196.52,196.4,17.82077392]
[1753171959214,6.2204,196.53,196.47,11.20280902]
[1753171959500,18.13320902,196.53,196.47,11.20280902]
[1753171959805,16.78468397,196.51,196.46,11.20280902]
[1753171960184,16.78468397,196.51,196.43,26.0]
[1753171960185,0.71,196.48,196.44,11.20280902]
[1753171960497,16.88468397,196.49,196.4,5.09164969]
[1753171960498,27.98749299,196.46,196.4,5.09164969]
[1753171960690,27.98749299,196.44,196.38,5.09216824]
[1753171960891,16.78468397,196.42,196.38,16.29497726]
[1753171961093,16.78468397,196.45,196.41,11.20280902]
[1753171961302,16.78468397,196.43,196.4,5.09164969]
[1753171961608,16.78468397,196.43,196.33,0.56]
[1753171961609,16.78468397,196.39,196.32,5.09372453]
[1753171961921,0.71,196.38,196.37,11.20280902]
[1753171962211,3.1947,196.41,196.37,11.20280902]
[1753171962422,3.1947,196.41,196.38,11.20280902]
[1753171962790,0.71,196.44,196.4,11.20280902]
[1753171963113,0.71,196.44,196.41,11.20280902]
[1753171963306,6.3308,196.46,196.42,16.29394026]
[1753171963486,6.3308,196.46,196.43,11.20280902]
[1753171963691,0.71,196.45,196.39,5.09190895]
[1753171963882,11.20280902,196.44,196.39,5.09190895]
[1753171964086,0.71,196.44,196.4,11.20280902]
[1753171964299,27.98749299,196.46,196.4,11.20280902]
[1753171964497,16.78468397,196.46,196.41,11.20280902]
[1753171964697,2.4847,196.47,196.42,11.20280902]
[1753171964899,17.59468397,196.49,196.45,11.20280902]
[1753171965109,17.59468397,196.49,196.46,11.20280902]
[1753171965308,17.59468397,196.49,196.47,5.08983559]
[1753171965615,0.71,196.48,196.47,5.08983559]
[1753171965816,16.78468397,196.47,196.45,5.09035377]
[1753171965998,0.71,196.46,196.45,5.09035377]
[1753171967186,11.91280902,196.46,196.42,5.09113124]
[1753171967392,11.20280902,196.44,196.39,11.20280902]
[1753171967705,11.91280902,196.43,196.37,11.20280902]
[1753171967907,16.78468397,196.45,196.39,11.20280902]
[1753171968091,16.78468397,196.46,196.42,11.20280902]
[1753171968289,11.20280902,196.47,196.42,11.20280902]
[1753171968614,0.1,196.49,196.44,11.20280902]
[1753171968831,16.88468397,196.49,196.44,11.20280902]
[1753171969311,0.71,196.48,196.45,5.09035377]
[1753171970423,28.08749299,196.49,196.45,5.09035377]
[1753171970424,11.91280902,196.47,196.45,5.09035377]
[1753171970604,11.20280902,196.46,196.45,5.09035377]
[1753171970792,11.91280902,196.46,196.45,5.09035377]
[1753171971318,11.91280902,196.46,196.37,5.09242756]
[1753171971497,11.20280902,196.45,196.37,17.82349646]
[1753171971700,11.20280902,196.42,196.37,29.02630548]
[1753171971899,0.71,196.42,196.37,29.02630548]
[1753171972217,0.71,196.42,196.28,11.20280902]
[1753171972218,11.20280902,196.38,196.25,25.477707]
[1753171972393,9.0798,196.4,196.28,11.20280902]
[1753171972394,11.20280902,196.34,196.28,11.20280902]
[1753171972592,0.71,196.37,196.3,11.20280902]
[1753171972909,0.71,196.37,196.25,13.2988535]
[1753171973107,11.20280902,196.34,196.28,11.20280902]
[1753171973430,11.20280902,196.3,196.28,5.09476258]
[1753171973714,28.69749299,196.29,196.22,11.20280902]
[1753171973926,17.49468397,196.29,196.21,37.20280902]
[1753171974108,11.20280902,196.28,196.22,11.20280902]
[1753171974792,17.49468397,196.29,196.19,0.56]
[1753171974991,11.20280902,196.3,196.24,11.20280902]
[1753171975399,0.71,196.35,196.28,11.20280902]
[1753171975628,11.20280902,196.36,196.26,0.56]
[1753171975922,9.0798,196.4,196.25,17.8343949]
[1753171975923,0.71,196.42,196.31,26.0]
[1753171976095,11.20280902,196.43,196.32,26.56]
[1753171976297,11.20280902,196.43,196.37,11.20280902]
[1753171976517,11.20280902,196.42,196.36,11.20280902]
[1753171976698,6.0394,196.46,196.31,39.72]
[1753171976699,6.7494,196.46,196.4,11.20280902]
[1753171976903,11.30280902,196.49,196.43,11.20280902]
[1753171977300,11.30280902,196.49,196.44,17.81714517]
[1753171977505,0.1,196.49,196.45,11.20280902]
[1753171977705,11.30280902,196.49,196.44,17.81714517]
[1753171977912,0.1,196.49,196.44,29.01995419]
[1753171978117,11.30280902,196.49,196.44,17.81714517]
[1753171978613,0.1,196.49,196.44,17.81714517]
[1753171978808,11.20280902,196.46,196.44,5.0906129]
[1753171979012,11.91280902,196.45,196.44,5.0906129]
[1753171979415,11.91280902,196.45,196.39,11.20280902]
[1753171980009,11.20280902,196.43,196.37,11.20280902]
[1753171980212,11.20280902,196.42,196.36,17.82440415]
[1753171980402,11.20280902,196.42,196.36,29.02721317]
[1753171980597,11.20280902,196.42,196.37,11.20280902]
[1753171980837,11.91280902,196.42,196.37,11.20280902]
[1753171981127,0.71,196.42,196.37,11.20280902]
[1753171981344,6.0394,196.52,196.42,5.09113124]
[1753171981524,6.0394,196.52,196.31,65.72]
[1753171981525,16.78468397,196.42,196.35,5.09294626]
[1753171981726,11.20280902,196.37,196.35,5.09294626]
[1753171981912,11.91280902,196.36,196.3,5.0942435]
[1753171982118,11.20280902,196.34,196.3,5.0942435]
[1753171982321,0.71,196.34,196.3,5.0942435]
[1753171982629,11.20280902,196.33,196.3,5.0942435]
[1753171982829,16.78468397,196.3,196.23,11.20280902]
[1753171983143,0.71,196.36,196.29,11.20280902]
[1753171983316,3.1654,196.4,196.35,11.20280902]
[1753171983501,3.1654,196.4,196.34,17.82621981]
[1753171983502,16.78468397,196.39,196.34,5.09320566]
[1753171983708,17.49468397,196.39,196.34,16.29601468]
[1753171983902,16.78468397,196.4,196.35,11.20280902]